bitfinex/quotes_SOLUSD_20250805
["timestamp","ask_amount","ask_price","bid_price","bid_amount"]
[1754400529160,148.2,167.42,167.41,60.79257292]
[1754400529356,148.2,167.42,167.41,48.79335881]
[1754400529581,148.2,167.42,167.41,60.79257292]
[1754400530379,148.2,167.46,167.41,60.79257292]
[1754400530562,148.2,167.46,167.44,11.99921411]
[1754400530761,148.2,167.46,167.44,54.79921411]
[1754400530762,0.72,167.45,167.44,54.79921411]
[1754400531592,0.72,167.45,167.44,42.8]
[1754400531778,0.72,167.45,167.42,54.79921411]
[1754400532084,6.69195297,167.45,167.42,42.8]
[1754400532382,0.72,167.44,167.42,42.8]
[1754400532566,0.72,167.43,167.42,42.8]
[1754400536091,148.2,167.42,167.4,42.74]
[1754400536399,0.72,167.41,167.4,42.74]
[1754400537889,6.69335881,167.41,167.4,42.74]
[1754400538113,6.69335881,167.41,167.36,5.97503453]
[1754400538114,18.69257292,167.41,167.38,42.7]
[1754400538300,17.97257292,167.41,167.38,42.7]
[1754400538613,0.72,167.4,167.38,42.7]
[1754400538985,8.21935852,167.4,167.38,42.7]
[1754400539191,5.97335881,167.41,167.34,0.06]
[1754400539192,156.39935852,167.39,167.34,0.06]
[1754400539406,7.49935852,167.38,167.35,42.72]
[1754400539618,8.19935852,167.37,167.35,42.72]
[1754400539793,5.9751434,167.36,167.35,42.72]
[1754400539986,6.6751434,167.36,167.35,42.72]
[1754400540186,0.7,167.36,167.35,42.72]
[1754400540716,8.19935852,167.36,167.34,0.06]
[1754400541008,160.11850409,167.35,167.32,0.06]
[1754400541208,7.49935852,167.33,167.32,0.06]
[1754400541605,8.19935852,167.33,167.32,0.06]
[1754400541801,0.7,167.33,167.32,0.06]
[1754400542192,6.67621466,167.33,167.32,0.06]
[1754400542392,0.7,167.33,167.32,0.06]
[1754400544298,148.2,167.34,167.32,0.06]
[1754400544503,161.67522213,167.34,167.32,0.06]
[1754400544703,162.37522213,167.34,167.32,0.06]
[1754400545293,8.19935852,167.33,167.32,0.06]
[1754400545494,38.61627527,167.33,167.3,0.06]
[1754400545695,7.49935852,167.31,167.3,0.06]
[1754400546098,8.19935852,167.31,167.3,0.06]
[1754400546290,14.17628757,167.31,167.3,0.06]
[1754400548823,6.67692905,167.31,167.3,0.06]
[1754400549029,14.17628757,167.31,167.3,0.06]
[1754400554346,17.36392083,167.34,167.3,7.55935852]
[1754400554347,0.73,167.34,167.3,7.55935852]
[1754400554631,0.03,167.34,167.33,7.49935852]
[1754400560142,0.03,167.34,167.33,13.59557318]
[1754400561336,0.03,167.34,167.33,54.84395032]
[1754400561814,0.03,167.34,167.33,28.84395032]
[1754400562018,0.03,167.36,167.35,41.24837714]
[1754400562233,0.03,167.36,167.35,97.4232361]
[1754400562528,0.03,167.36,167.35,97.5432361]
[1754400565017,0.7,167.45,167.39,26.0]
[1754400565222,0.7,167.47,167.44,7.49935852]
[1754400565432,0.7,167.47,167.46,7.49935852]
[1754400567158,0.03,167.49,167.46,7.49935852]
[1754400567343,0.03,167.49,167.47,7.49935852]
[1754400568020,0.73,167.48,167.47,7.49935852]
[1754400568639,0.03,167.48,167.47,7.49935852]
[1754400569140,0.7,167.48,167.47,50.17935852]
[1754400569525,0.7,167.48,167.47,42.68]
[1754400570245,0.7,167.48,167.47,50.17935852]
[1754400572631,148.9,167.48,167.47,50.17935852]
[1754400572833,148.9,167.48,167.47,42.68]
[1754400573025,148.9,167.48,167.47,50.17935852]
[1754400573953,148.9,167.48,167.47,42.68]
[1754400576526,148.9,167.48,167.47,42.66]
[1754400577630,148.23,167.48,167.47,50.15935852]
[1754400579834,148.23,167.48,167.47,56.13057724]
[1754400580030,148.23,167.48,167.47,56.25057724]
[1754400580246,0.03,167.48,167.47,56.25057724]
[1754400580450,0.03,167.48,167.47,72.09607625]
[1754400589356,0.03,167.49,167.48,41.24837714]
[1754400589682,0.03,167.49,167.48,48.86773566]
[1754400589853,0.03,167.49,167.48,54.71859785]
[1754400591385,0.03,167.49,167.48,97.35859785]
[1754400592577,0.7,167.49,167.48,97.35859785]
[1754400592890,0.03,167.49,167.48,97.35859785]
[1754400595358,0.03,167.49,167.47,24.64184497]
[1754400595359,8.19935852,167.49,167.47,23.92184497]
[1754400595557,8.16935852,167.48,167.47,22.48184497]
[1754400595785,8.11935852,167.48,167.47,22.48184497]
[1754400596367,14.09022071,167.48,167.47,22.48184497]
[1754400598784,29.01737619,167.48,167.43,42.62]
[1754400598986,7.49935852,167.44,167.42,42.62]
[1754400599286,8.11935852,167.43,167.41,42.62]
[1754400599481,0.62,167.43,167.41,42.62]
[1754400599878,0.62,167.42,167.41,42.62]
[1754400600083,7.49935852,167.43,167.41,42.62]
[1754400600279,0.62,167.44,167.41,42.62]
[1754400600280,5.9715753,167.46,167.41,50.11935852]
[1754400600591,7.49935852,167.42,167.4,42.64]
[1754400600796,7.49935852,167.42,167.37,34.17935852]
[1754400600797,0.62,167.41,167.39,42.64]
[1754400601097,0.62,167.4,167.38,42.64]
[1754400601267,26.62,167.43,167.38,42.64]
[1754400601474,7.49935852,167.41,167.38,42.64]
[1754400601811,8.11935852,167.41,167.38,42.64]
[1754400601995,7.49935852,167.42,167.38,42.64]
[1754400602297,7.49935852,167.39,167.38,42.64]
[1754400602513,0.62,167.39,167.36,42.64]
[1754400602680,7.49935852,167.41,167.36,50.13935852]
[1754400602882,7.49935852,167.42,167.37,8.17935852]
[1754400603100,8.11935852,167.42,167.38,42.64]
[1754400603398,6.59240672,167.44,167.4,7.49935852]
[1754400603599,13.47137063,167.45,167.41,42.64]
[1754400603788,148.2,167.44,167.42,8.17935852]
[1754400604098,148.2,167.48,167.43,56.7920038]
[1754400604284,148.2,167.48,167.45,7.49935852]
[1754400604482,0.03,167.49,167.43,48.61264528]
[1754400604483,0.03,167.49,167.47,7.49935852]
[1754400604893,0.03,167.49,167.48,42.64]
[1754400605070,0.03,167.49,167.48,50.13935852]
[1754400605388,0.03,167.49,167.48,50.81935852]
[1754400606078,0.03,167.49,167.48,56.79022071]
[1754400606300,0.03,167.49,167.48,72.03859785]
[1754400607396,0.03,167.49,167.48,50.81935852]
[1754400607898,0.65,167.49,167.48,42.64]
[1754400608283,0.65,167.49,167.38,2.391129]
[1754400608284,14.12004942,167.49,167.4,5.97365455]
[1754400608473,14.12004942,167.49,167.38,0.68]
[1754400608474,7.49935852,167.45,167.38,0.68]
[1754400608674,7.49935852,167.45,167.4,7.49935852]
[1754400608880,0.62,167.44,167.41,42.64]
[1754400609074,7.49935852,167.43,167.41,42.64]
[1754400609276,8.11935852,167.44,167.41,42.64]
[1754400609476,5.97193191,167.45,167.41,42.64]
[1754400609681,7.49935852,167.43,167.41,42.64]
[1754400609889,8.11935852,167.42,167.41,42.64]
[1754400610083,8.11935852,167.42,167.36,7.49935852]
[1754400610286,7.49935852,167.41,167.37,42.64]
[1754400610486,8.11935852,167.41,167.37,42.64]
[1754400610702,12.61852758,167.41,167.37,42.64]
[1754400610879,12.61852758,167.4,167.37,42.64]
[1754400611075,11.99852758,167.38,167.34,0.06]
[1754400611410,11.99852758,167.36,167.34,0.06]
[1754400611706,18.59402802,167.35,167.34,0.06]
[1754400611891,11.99852758,167.35,167.34,0.06]
[1754400612493,11.99852758,167.36,167.34,0.06]
[1754400612695,11.99852758,167.37,167.34,0.06]
[1754400613003,31.9736157,167.41,167.35,55.31852758]
[1754400613220,11.99852758,167.4,167.35,55.31852758]
[1754400613420,17.97127501,167.43,167.38,11.99852758]
[1754400613620,11.99852758,167.42,167.37,11.99852758]
[1754400613837,12.61852758,167.42,167.37,11.99852758]
[1754400614122,11.99852758,167.4,167.35,54.63852758]
[1754400614290,11.99852758,167.43,167.38,11.99852758]
[1754400614629,11.99852758,167.42,167.38,54.63852758]
[1754400614996,11.99852758,167.42,167.38,55.31852758]
[1754400615196,11.99852758,167.42,167.38,43.32]
[1754400615398,11.99852758,167.44,167.39,12.67852758]
[1754400615615,11.99852758,167.44,167.39,18.65257317]
[1754400615818,17.97088356,167.44,167.39,18.65257317]
[1754400616122,160.19852758,167.43,167.38,60.61284316]
[1754400616326,11.99852758,167.41,167.38,42.64]
[1754400616623,12.61852758,167.41,167.38,42.64]
[1754400616842,11.99852758,167.41,167.38,42.64]
[1754400617003,0.62,167.4,167.38,42.64]
[1754400617700,6.59395247,167.4,167.38,42.64]
[1754400617896,5.97395247,167.4,167.38,42.64]
[1754400618315,5.97395247,167.4,167.36,54.65852758]
[1754400618506,5.97395247,167.4,167.36,55.33852758]
[1754400619595,17.97248005,167.4,167.36,42.66]
[1754400619925,17.97248005,167.4,167.35,54.63852758]
[1754400620104,17.97248005,167.4,167.36,0.68]
[1754400620429,11.99852758,167.37,167.34,0.06]
[1754400620610,0.62,167.39,167.34,0.06]
[1754400620815,11.99852758,167.35,167.34,0.06]
[1754400621404,12.61852758,167.35,167.34,0.06]
[1754400621621,47.22423467,167.34,167.33,0.06]
[1754400621822,64.19561191,167.34,167.33,0.06]
[1754400622145,15.24837714,167.33,167.3,0.06]
[1754400622307,37.99852758,167.31,167.3,0.06]
[1754400622634,42.40412588,167.31,167.28,0.06]
[1754400622813,38.49852758,167.3,167.28,0.06]
[1754400623138,53.74690472,167.3,167.28,0.06]
[1754400623432,15.24837714,167.29,167.28,0.06]
[1754400623734,76.42454833,167.29,167.28,0.06]
[1754400625002,102.42454833,167.29,167.28,0.06]
[1754400626534,88.42307591,167.29,167.28,1e-08]
[1754400626708,26.0,167.26,167.23,0.06]
[1754400626915,11.99852758,167.24,167.23,0.06]
[1754400627613,17.97795833,167.24,167.23,0.06]
[1754400629947,17.97795833,167.24,167.23,0.75]
[1754400629948,11.99852758,167.24,167.23,0.75]
[1754400630133,17.97795833,167.24,167.23,0.75]
[1754400630548,17.97795833,167.24,167.23,0.06]
[1754400632748,18.47795833,167.24,167.23,0.06]
[1754400632946,127.15195188,167.21,167.19,0.2]
[1754400633135,139.15047946,167.2,167.19,0.2]
[1754400633333,139.15047946,167.2,167.19,0.89]
[1754400633729,145.1313407,167.2,167.19,0.89]
[1754400633936,127.15195188,167.2,167.19,0.89]
[1754400634730,127.15195188,167.2,167.19,18.86974655]
[1754400634933,127.15195188,167.2,167.19,12.88852758]
[1754400635555,127.15195188,167.2,167.19,0.89]
[1754400635757,139.15047946,167.2,167.19,0.89]
[1754400636060,145.1313407,167.2,167.19,0.2]
[1754400636259,17.97938882,167.2,167.19,0.2]
[1754400637973,59.72776596,167.2,167.19,1e-08]
[1754400638739,26.0,167.18,167.17,1e-08]
[1754400638946,37.99852758,167.18,167.17,1e-08]
[1754400639164,26.0,167.18,167.17,1e-08]
[1754400639344,80.73852758,167.18,167.17,1e-08]
[1754400639740,74.72157674,167.18,167.17,1e-08]
[1754400639943,31.98157674,167.18,167.17,0.69000001]
[1754400640251,43.98010432,167.18,167.17,1e-08]
[1754400640843,43.98010432,167.18,167.17,0.69000001]
[1754400641041,43.98010432,167.18,167.17,1e-08]
[1754400642671,44.48010432,167.18,167.17,1e-08]
[1754400643047,59.72848146,167.18,167.17,1e-08]
[1754400643958,43.98010432,167.18,167.17,1e-08]
[1754400644674,44.48010432,167.18,167.17,1e-08]
[1754400644882,59.72848146,167.18,167.17,1e-08]
[1754400646598,31.98157674,167.18,167.17,1e-08]
[1754400646917,43.98010432,167.18,167.17,1e-08]
[1754400647482,43.98010432,167.18,167.17,0.69000001]
[1754400647648,43.98010432,167.18,167.17,1e-08]
[1754400647852,87.24010432,167.18,167.17,1e-08]
[1754400648051,86.74010432,167.18,167.17,1e-08]
[1754400648466,86.74010432,167.18,167.15,0.2]
[1754400648467,15.10621557,167.17,167.15,1e-08]
[1754400648694,70.00690472,167.16,167.15,1e-08]
[1754400649001,15.24837714,167.15,167.13,1e-08]
[1754400649297,54.79852758,167.14,167.13,1e-08]
[1754400649479,55.29852758,167.14,167.13,1e-08]
[1754400650069,76.02991297,167.14,167.13,1e-08]
[1754400650275,86.78153583,167.14,167.13,1e-08]
[1754400650574,11.99852758,167.15,167.13,0.69000001]
[1754400650788,11.99852758,167.14,167.13,0.69000001]
[1754400651295,11.99852758,167.14,167.13,1e-08]
[1754400652228,17.98153583,167.14,167.13,0.69000001]
[1754400652505,17.98153583,167.14,167.13,1e-08]
[1754400654498,17.98153583,167.14,167.13,0.69000001]
[1754400654907,5.98300825,167.14,167.13,0.69000001]
[1754400655112,17.98153583,167.14,167.13,0.69000001]
[1754400655316,5.98275707,167.15,167.13,0.69000001]
[1754400655522,43.98088195,167.16,167.13,0.69000001]
[1754400656104,11.99852758,167.15,167.14,0.69]
[1754400656299,17.98117789,167.15,167.14,0.69]
[1754400656617,60.80117789,167.15,167.13,1e-08]
[1754400656800,11.99852758,167.14,167.13,1e-08]
[1754400657912,54.81852758,167.14,167.13,1e-08]
[1754400658119,80.81852758,167.14,167.13,1e-08]
[1754400658305,102.54991297,167.14,167.13,1e-08]
[1754400658820,102.04991297,167.14,167.13,1e-08]
[1754400659198,102.54991297,167.14,167.13,1e-08]
[1754400659708,76.54991297,167.14,167.13,1e-08]
[1754400660294,33.72991297,167.14,167.13,1e-08]
[1754400660522,11.99852758,167.15,167.13,0.66000001]
[1754400660723,17.98046213,167.17,167.13,0.66000001]
[1754400661109,5.98193455,167.17,167.13,12.65852759]
[1754400661319,11.99852758,167.15,167.14,0.66]
[1754400661527,11.99852758,167.15,167.13,1e-08]
[1754400661691,68.86,167.16,167.13,1e-08]
[1754400661692,11.99852758,167.14,167.13,1e-08]
[1754400662297,102.10991297,167.14,167.13,1e-08]
[1754400662518,102.60991297,167.14,167.13,1e-08]
[1754400662726,102.10991297,167.14,167.13,1e-08]
[1754400664127,102.60991297,167.14,167.13,1e-08]
[1754400664300,102.10991297,167.14,167.13,1e-08]
[1754400664702,84.93835266,167.14,167.13,1e-08]
[1754400664914,26.0,167.11,167.06,0.66]
[1754400665099,11.99852758,167.07,167.04,0.66]
[1754400665300,11.99852758,167.06,167.04,0.66]
[1754400665697,11.99852758,167.06,167.01,11.99852758]
[1754400665698,11.99852758,167.06,167.05,0.66]
[1754400665908,11.99852758,167.07,167.05,0.66]
[1754400666135,42.88,167.1,167.05,0.66]
[1754400666302,36.18890603,167.14,167.05,0.66]
[1754400666303,46.94052889,167.14,167.07,11.99852758]
[1754400666634,11.99852758,167.12,167.08,0.66]
[1754400666934,11.99852758,167.09,167.08,0.66]
[1754400667117,11.99852758,167.1,167.05,11.99852758]
[1754400667312,43.98153583,167.14,167.09,0.66]
[1754400667618,11.99852758,167.1,167.04,11.99852758]
[1754400667825,11.99852758,167.1,167.07,0.66]
[1754400668226,11.99852758,167.11,167.07,0.66]
[1754400668431,5.98444045,167.1,167.07,0.66]
[1754400669507,5.98444045,167.1,167.08,0.66]
[1754400669715,148.2,167.09,167.08,0.66]
[1754400670137,5.98444045,167.1,167.08,0.66]
[1754400670320,5.98444045,167.1,167.09,0.66]
[1754400670517,17.98296803,167.1,167.05,11.99852758]
[1754400670720,17.98296803,167.1,167.07,0.66]
[1754400671118,11.99852758,167.09,167.05,0.66]
[1754400671324,11.99852758,167.08,167.06,0.66]
[1754400671722,11.99852758,167.07,167.03,0.66]
[1754400672111,11.99852758,167.06,167.04,0.66]
[1754400672530,5.98623166,167.05,167.04,0.66]
[1754400673014,26.0,167.09,167.04,12.65852758]
[1754400673218,26.0,167.09,167.05,0.66]
[1754400673423,26.0,167.09,167.01,5.98753692]
[1754400673424,11.99852758,167.08,167.06,0.66]
[1754400673624,11.99852758,167.07,167.01,0.66]
[1754400673854,11.99852758,167.05,167.01,0.66]
[1754400674241,11.99852758,167.05,167.0,11.99852758]
[1754400674435,43.42,167.08,167.02,0.66]
[1754400674436,11.99852758,167.06,167.02,0.66]
[1754400675050,11.99852758,167.05,167.03,0.66]
[1754400675740,60.90381965,167.08,167.04,0.66]
[1754400675942,60.90381965,167.08,167.05,0.66]
[1754400676142,17.98381965,167.08,167.05,0.66]
[1754400676448,17.98381965,167.08,167.03,0.66]
[1754400676624,11.99852758,167.07,167.03,0.66]
[1754400676823,11.99852758,167.05,167.03,0.66]
[1754400677027,11.99852758,167.05,167.01,0.66]
[1754400677252,11.99852758,167.05,167.02,0.66]
[1754400678157,11.99852758,167.03,167.0,0.66]
[1754400678454,11.99852758,167.01,166.96,12.75852758]
[1754400678634,11.99852758,167.0,166.98,0.66]
[1754400678831,17.98647814,167.01,166.96,12.09852758]
[1754400679031,26.0,167.05,167.0,11.99852758]
[1754400679032,31.98635684,167.05,167.0,11.99852758]
[1754400679252,11.99852758,167.09,167.04,11.99852758]
[1754400679458,17.98296803,167.1,167.05,0.66]
[1754400679655,43.98296803,167.1,167.06,0.66]
[1754400679843,42.96,167.11,167.07,11.99852758]
[1754400680029,42.96,167.11,167.08,0.66]
[1754400680230,0.03,167.14,167.07,11.99852758]
[1754400680231,5.98365359,167.13,167.09,0.66]
[1754400680458,11.99852758,167.11,167.09,0.66]
[1754400680656,11.99852758,167.11,167.07,0.66]
[1754400680862,5.98444045,167.1,167.06,11.99852758]
[1754400681163,5.98444045,167.1,167.08,0.66]
[1754400681356,17.98273801,167.11,167.06,12.65852758]
[1754400681545,17.98273801,167.11,167.09,0.66]
[1754400682141,17.98273801,167.11,167.07,0.66]
[1754400682359,17.98273801,167.11,167.08,0.66]
[1754400682734,17.98273801,167.11,167.07,0.66]
[1754400683250,11.99852758,167.1,167.05,0.06]
[1754400683560,11.99852758,167.08,167.05,0.06]
[1754400683762,11.99852758,167.08,167.05,0.72]
[1754400684147,11.99852758,167.06,167.05,0.06]
[1754400684339,37.99852758,167.06,167.05,0.06]
[1754400684536,42.90808591,167.06,167.05,0.06]
[1754400684956,91.83395924,167.06,167.05,0.06]
[1754400685159,111.05140023,167.06,167.05,0.06]
[1754400685358,126.01608357,167.06,166.97,0.66]
[1754400685563,11.99852758,167.0,166.97,0.66]
[1754400685745,11.99852758,166.98,166.96,0.1]
[1754400686060,26.0,166.99,166.96,0.1]
[1754400686563,20.95055667,167.06,166.98,11.99852758]
[1754400686752,11.99852758,167.04,166.99,12.65852758]
[1754400687069,17.98531571,167.04,167.0,0.66]
[1754400687235,54.99852758,167.07,167.02,11.99852758]
[1754400687435,11.99852758,167.08,167.03,12.65852758]
[1754400687644,11.99852758,167.07,167.02,11.99852758]
[1754400687942,11.99852758,167.07,167.03,0.66]
[1754400688271,11.99852758,167.06,167.01,0.66]
[1754400688579,11.99852758,167.06,167.01,12.65852758]
[1754400688889,5.98623166,167.05,167.02,0.71]
[1754400689748,5.98623166,167.05,167.01,11.99852758]
[1754400689960,11.99852758,167.08,167.02,12.70852758]
[1754400690155,17.98368439,167.08,167.03,12.70852758]
[1754400690356,17.98368439,167.08,167.04,0.71]
[1754400690557,4.41424837,167.07,167.02,11.99852758]
[1754400690760,16.41277595,167.07,167.02,12.70852758]
[1754400690959,17.98440091,167.06,167.01,11.99852758]
[1754400691175,11.99852758,167.04,166.99,0.71]
[1754400691375,11.99852758,167.04,166.99,12.70852758]
[1754400691575,6.48587333,167.06,166.99,12.70852758]
[1754400691576,11.99852758,167.05,167.0,12.70852758]
[1754400691759,17.98440091,167.06,167.01,12.70852758]
[1754400691961,11.99852758,167.05,167.0,11.99852758]
[1754400692276,11.99852758,167.03,166.98,12.70852758]
[1754400692470,11.99852758,167.03,166.98,11.99852758]
[1754400692779,11.99852758,167.04,166.99,12.70852758]
[1754400692976,17.98517746,167.04,167.0,0.71]
[1754400693657,17.98517746,167.04,166.96,43.1]
[1754400693658,11.99852758,167.03,166.98,12.70852758]
[1754400693977,17.98517746,167.04,166.99,11.99852758]
[1754400694168,11.99852758,167.03,166.99,0.71]
[1754400694483,5.98664988,167.04,166.99,0.71]
[1754400694681,11.99852758,167.03,166.99,0.71]
[1754400694862,11.99852758,167.01,166.96,43.1]
[1754400695068,6.0873069,167.02,166.96,43.81]
[1754400695069,11.99852758,167.0,166.96,43.81]
[1754400695370,11.99852758,167.01,166.96,55.80852758]
[1754400695550,11.99852758,167.0,166.96,43.81]
[1754400695754,17.98583448,167.02,166.97,12.70852758]
[1754400695956,26.0,167.06,167.01,11.99852758]
[1754400696158,148.2,167.1,167.03,11.99852758]
[1754400696377,8.39007311,167.09,167.04,12.70852758]
[1754400696567,3.97437998,167.09,167.05,0.71]
[1754400696877,21.95789443,167.09,167.05,0.71]
[1754400697091,3.97437998,167.08,167.06,0.71]
[1754400697260,5.98498687,167.09,167.06,0.71]
[1754400697885,11.99852758,167.07,167.0,26.0]
[1754400698058,11.99852758,167.05,167.0,0.71]
[1754400698254,11.99852758,167.05,167.0,12.70852758]
[1754400698462,11.99852758,167.03,167.0,0.71]
[1754400698756,11.99852758,167.03,166.99,42.98]
[1754400698757,11.99852758,167.01,166.96,0.1]
[1754400699098,5.98808727,167.0,166.96,12.09852758]
[1754400699260,5.98776566,167.01,166.97,12.70852758]
[1754400699569,5.98776566,167.01,166.98,0.71]
[1754400699766,5.98741891,167.02,166.99,0.71]
[1754400700082,5.98741891,167.02,166.97,0.06]
[1754400700285,11.99852758,167.04,167.0,0.71]
[1754400700485,0.03,167.05,167.03,11.99852758]
[1754400700691,0.03,167.05,167.0,43.0]
[1754400700907,12.02852758,167.05,167.0,55.70852758]
[1754400701099,6.01623166,167.05,167.01,12.70852758]
[1754400701272,0.03,167.05,167.02,12.70852758]
[1754400701583,0.03,167.05,167.04,11.99852758]
[1754400701985,0.03,167.05,167.04,0.71]
[1754400702360,0.03,167.05,167.04,12.70852758]
[1754400705109,0.03,167.05,167.04,11.99852758]
[1754400705689,0.03,167.05,167.04,12.70852758]
[1754400707301,0.03,167.05,167.04,18.69511761]
[1754400707596,0.03,167.05,167.04,33.94349475]
[1754400708401,0.03,167.05,167.04,0.71]
[1754400708603,0.03,167.05,167.04,12.70852758]
[1754400709267,0.03,167.05,167.04,18.69511761]
[1754400709477,0.03,167.05,167.04,33.94349475]
[1754400709778,0.03,167.05,167.04,12.70852758]
[1754400711086,0.03,167.05,167.02,5.98708377]
[1754400711294,0.03,167.05,167.03,54.89852758]
[1754400711493,0.03,167.05,167.03,42.9]
[1754400711681,0.03,167.05,167.03,54.89852758]
[1754400712501,0.03,167.05,167.04,11.99852758]
[1754400713009,0.03,167.05,167.03,55.60852758]
[1754400713707,0.03,167.05,167.03,54.89852758]
[1754400714899,0.03,167.05,167.03,55.60852758]
[1754400715106,0.03,167.05,167.03,43.61]
[1754400715512,0.03,167.05,167.03,0.71]
[1754400715726,11.99852758,167.04,166.99,12.70852758]
[1754400716022,11.99852758,167.01,166.97,43.65]
[1754400716232,11.99852758,167.02,166.97,55.64852758]
[1754400716523,5.9876654,167.01,166.98,0.71]
[1754400716723,17.98619298,167.01,166.97,42.94]
[1754400717016,11.99852758,166.99,166.97,42.94]
[1754400717210,12.49852758,167.0,166.97,42.94]
[1754400717811,11.99852758,167.0,166.97,42.94]
[1754400718398,5.98874116,166.98,166.97,42.94]
[1754400719999,26.0,167.02,166.97,42.94]
[1754400720199,31.98800517,167.01,166.98,0.66]
[1754400720521,17.98511761,167.04,166.99,12.65852758]
[1754400720710,11.99852758,167.0,166.97,0.06]
[1754400720917,11.99852758,166.98,166.97,42.92]
[1754400721218,11.99852758,166.99,166.97,42.92]
[1754400721625,37.99852758,167.01,166.98,0.66]
[1754400721826,26.0,167.01,166.99,0.66]
[1754400722207,17.98511761,167.04,167.0,0.66]
[1754400722411,4.42668432,167.03,167.01,0.66]
[1754400722816,10.41369529,167.03,166.97,48.90901985]
[1754400723021,11.99852758,167.02,166.98,0.66]
[1754400723227,11.99852758,167.02,166.97,60.90754877]
[1754400723409,5.98661261,167.04,167.01,11.99852758]
[1754400723606,4.42722352,167.03,167.01,11.99852758]
[1754400723931,11.99852758,167.02,166.97,0.72]
[1754400724233,17.98514019,167.04,167.0,11.99852758]
[1754400724411,148.2,167.01,166.98,42.9]
[1754400724615,148.2,167.01,166.98,48.88866266]
[1754400725007,148.2,167.01,166.99,0.66]
[1754400725204,148.2,167.01,166.98,42.9]
[1754400725404,148.2,167.01,166.99,0.66]
[1754400725619,148.2,167.01,166.98,55.55852758]
[1754400725809,148.2,167.01,166.99,12.65852758]
[1754400726007,148.2,167.01,167.0,0.66]
[1754400726431,148.2,167.01,167.0,12.65852758]
[1754400727136,0.03,167.05,167.01,15.10621557]
[1754400727430,0.03,167.05,167.04,11.99852758]
[1754400727811,0.03,167.05,167.03,11.99852758]
[1754400728331,0.03,167.05,167.02,43.54]
[1754400728332,0.03,167.05,167.02,54.87852758]
[1754400728633,0.03,167.05,167.02,51.41689758]
[1754400729126,0.03,167.05,167.03,0.66]
[1754400729310,0.03,167.05,167.04,11.99852758]
[1754400729505,0.03,167.05,167.04,27.10474315]
[1754400729714,0.03,167.05,167.04,27.90690472]
[1754400730613,0.03,167.05,167.04,18.64511761]
[1754400730817,0.03,167.05,167.04,12.65852758]
[1754400731535,0.03,167.05,167.04,11.99852758]
[1754400731732,0.03,167.05,167.04,12.65852758]
[1754400732933,0.03,167.05,167.02,65.41837]
[1754400733118,0.03,167.05,167.04,11.99852758]
[1754400733328,0.03,167.05,167.04,54.87852758]
[1754400733736,0.03,167.05,167.03,11.99852758]
[1754400734044,16.46542007,167.05,167.0,12.65852758]
[1754400734244,0.03,167.05,167.02,11.99852758]
[1754400734442,4.46689498,167.05,167.03,11.99852758]
[1754400734637,0.03,167.05,167.02,0.66]
[1754400734839,0.03,167.05,167.03,11.99852758]
[1754400735959,0.03,167.05,167.04,12.65852758]
[1754400736123,0.03,167.05,167.04,55.51852758]
[1754400736324,0.03,167.05,167.04,42.86]
[1754400736851,0.03,167.05,167.02,54.87852758]
[1754400737219,0.5,167.04,167.02,42.88]
[1754400737425,12.02852758,167.05,167.02,42.88]
[1754400737727,0.53,167.05,167.02,42.88]
[1754400737919,12.02852758,167.05,167.0,11.99852758]
[1754400738241,11.99852758,167.02,166.97,42.94]
[1754400738442,148.2,167.01,166.98,42.88]
[1754400738758,7.53596284,167.0,166.98,42.88]
[1754400738924,5.98838253,166.99,166.97,0.06]
[1754400739822,13.52434537,166.99,166.97,0.06]
[1754400740038,7.53596284,166.98,166.97,0.06]